{"text_format":"3","workbook":"xlsx","n_sheets":5,"sheets":["Вуков Споменик-ново","Санитарни чвор Вуков споменик","Елект. и-Расвета Вуков Споменик","Збирна рекапитилација","Sheet1"],"not_rendered":{"defined_names":4},"read":"whole","date_system":"1900"}

{"sheet":"Вуков Споменик-ново","index":0,"n_rows":107,"n_cols":6,"rows_kept":107,"merged":[[0,0,0,5],[1,0,1,5],[2,0,2,5],[5,1,5,5],[7,1,7,3],[9,0,9,3],[12,0,12,5],[21,1,21,3],[33,1,33,3],[35,0,35,5],[37,1,37,3],[41,0,41,4],[53,1,53,3],[59,1,59,3],[62,1,62,3],[66,1,66,3],[69,1,69,3],[80,0,84,0],[81,2,84,2],[81,3,84,3],[81,4,84,4],[81,5,84,5],[82,1,84,1],[93,1,93,3],[95,0,95,5],[106,1,106,3]]}
["ПРЕДМЕР И ПРЕДРАЧУН РАДОВА\nза израду пројектно - техничке документације и извођење радова  на железничкој станици Вуков Споменик"]
[" РАДОВИ НА ЖЕЛЕЗНИЧКОЈ СТАНИЦИ  ВУКОВ СПОМЕНИК"]
[]
["Ред. број","ВРСТА РАДОВА","Јед. мере","Количина","Јединична цена (динара)","Цена (динара)"]
["А","ЕСКАЛАТОРИ - ПОКРЕТНЕ СТЕПЕНИЦЕ ","јед.мере","количина","јед. цена","укупно"]
[null,"НАПОМЕНА:Покретне степенице повезују доњи део вестибила са горњим делом вестибила и у употреби су  од 1995. године што знечи да су у потпуности амортизоване, односно да је њихова поузданост и безбедност на минимуму. Замена покретних степеница - ескалатора треба да обухвати њихово безбедно коришћење и што би било исплативије на дужи рок експлоатације. Понуда треба да обухвати следеће: 1. Израда комплетне техничке документације уз предходну проверу свих неопходних података на лице места   2. Комплетна демонтажа постојећих покретних степеница. Обавеза Извођача је да сву демонтирану опрему или преда Инвеститору или преузме и одвезе на депонију 3. Испорука комплетно нових степеница у складу са одобреном техничком документацијом 4. Монтажа испоручених покретних степеница, комплетно са испитивањем, издавањем сертификата о исправности покретних степеница и пуштање у рад.  Санација свих грађевинских оштећења насталих током радова на демонтажи, монтажи, изношењу и уношењу у објекат  4. Изабрани понуђач је дужан да приликом примопредаје, на одговарајућем медијуму  испоручи оргинални софтвер главне управљачке јединице покретних степеница са детаљним упутством и листом подешених параметара на српском језику оверених од стране Понуђача. 5. Предаја комплетне документације изведеног стања, упутстава за коришћење и одржавање на српском језику, са свим атестима за уграђену опрему, као и гаранције. 6. У гарантном периоду понуђач-извођач о свом трошку врши редовно одржавање покретних степеница у складу са препоруком произвођача и важећим прописима. Предвидети гарантни перио не краћи од три године. Понуђач је обавезан да изврши обилазак објекта уз издавање потврде Наручиоца о извршеном увиду."]
[1,"ЗАМЕНА ПОКРЕТНИХ СТЕПЕНИЦА - ескалатора: малих етажних серијског броја 46,47,60 и 61 . Висине дизања и позиције малих етажних ескалатора:\nЕскалатор број 46 висина дизања 3,2 метра (ниво благајна-пешачка пасарела)\nЕскалатор број 47 висина дизања 3,2 метра (ниво благајна-пешачка пасарела)\nЕскалатор број 60 висина дизања 4,55 метра (ниво пешачка пасарела-технички факултет)\nЕскалатор број 61 висина дизања 6,7 метара (ниво пешачка пасарела-споменик Вук)\nса израдом пројектно-техничке документације. Обрачун по комаду.","ком",4]
["А","ЕСКАЛАТОРИ - ПОКРЕТНЕ СТЕПЕНИЦЕ",null,null," УКУПНО :"]
[]
["Р Е К А П И Т У Л А Ц И Ј А           А) ЕСКАЛАТОРИ - ПОКРЕТНЕ СТЕПЕНИЦЕ",{"$nulls":3}," УКУПНО:"]
[]
[]
["Б) ГРАЂЕВИНСКО - ЗАНАТСКИ РАДОВИ "]
["I","ПРИПРЕМНИ И ОСТАЛИ РАДОВИ","јед.мере","количина","јед. цена","укупно"]
[1,"Израда и постављање табли обавештења да се изводе грађевински радови, са основним подацима. Обрачун по комаду.","ком",{"v":1,"d":"1.00"}]
[2,"Постављање заштитне ограде од ПВЦ-а око свих делова који буду предмет санације на градилишту. Висина ограде је мин 2 m. Ограда је од монтажно демонтажних стубова ПВЦ градилишне мреже.","м1",{"v":200,"d":"200.00"}]
[3,"Монтажа и дeмонтажа металне цевасте фасаднe скеле, за радове у свему по важећим прописима. Скела мора били статички стабилна и да поседује одговарајући атест, анкерована за објекат и прописно уземљена. На сваких 2.00 м висине поставити радне платформе од фосни. Користи се за све време трајања радова. Обрачун по м2 вертикалне пројекције монтиране скеле.","м2",{"$f":"258+(20+30+22+26)*4","v":{"v":650,"d":"650.00"}}]
["4","Монтажа и демонтажа металне цевасте покретне скеле, за радове у свему по важећим прописима . Скела мора бити статички стабилна, да поседује одговарајући атест и висине најмање  7 метара. На сваких 2м висине поставити радне платформе од металних елемената. Са спољне стране платформи поставити металне елементе на \"кант\". \n","dan",{"v":30,"d":"30.00"}]
[5,"Набавка материјала, припрема и заштита  површина дебљом грађевинском фолијом, од минимум 150 микрона, током извођења радова. Сва евентуална прљања и оштећења падају на терет извођача. Плаћа се само једном током извођења радова. Обрачун по м2.","м2",{"v":250,"d":"250.00"}]
["6","Пажљива заштита свог намештаја, подних површина и осталог  (прекидачи, утикачи, техника, расвета, клупе, столови, столице, сви плочасти материјали од дрвета стакла, керамике, иверице, столарије - алуминарије...),заштитити чврстим најлоном од минимум 30 микрона. Сва евентуална прљања и оштећења намештаја падају не терет извођача.","м2",{"v":1000,"d":"1000.00"}]
[7,"Прикупљање постојећег шута и одвоз шута на\nградску депонију удаљену до 15км. Обрачун по м³","м2",{"v":4,"d":"4.00"}]
["I   ","ПРИПРЕМНИ И ОСТАЛИ РАДОВИ",null,null,"УКУПНО:"]
["II"," ДЕМОНТАЖЕ И РУШЕЊА:","јед.мере","количина","јед. цена","укупно"]
[1,"Демонтажа постојећих пиктограма у објекту. Шут прикупити, изнети,утоварити на камион и одвести на градску депонију удаљености дo 15 км. ","ком",{"v":150,"d":"150.00"}]
[2,"Демонтажа постојећих седалних места на перонском стајалишту. Шут прикупити, изнети,утоварити на камион и одвести на градску депонију удаљености до 15 км. Обрачун по комаду.","ком.",{"v":84,"d":"84.00"}]
[3,"Пажљива демонтажа свих валидатора. Демонтиране валидаторе одложити на место које одреди Инвеститор. Обрачун по комаду.","ком.",6]
[4,"Демонтажа и уклањање кућице за чувара основе 2 м2 од алуминијума и стаклених елемената (и објекта непосредно поред кућице), одложити на место које одреди Инвеститор .Обрачун по комаду.","ком ",{"v":2,"d":"2.00"}]
[5,"Демонтажа и говорнице од алуминијума димензија 220х80 цм и стаклених елемената, одложити на место које одреди Инвеститор. Обрачун по комаду.","ком ",{"$f":"6","v":{"v":6,"d":"6.00"}}]
[6,"Демонтажа сливне решетке димензија 330х50 цм, 540х38цм, 540х23цм  и 277х37 цм на излазу из подходника од метала на две позиције, утовар и одвоз шута на депонију . Обрачун по комаду.","ком",{"v":8,"d":"8.00"}]
[7,"Демонтажа спуштеног плафона од гипс картонских плоча са конструкцијом. Шут прикупити, изнети, утоварити на камион и одвести на градску депонију удаљености до 15 км. Обрачун је по м² плафона.","м2",{"v":195,"d":"195.00"}]
[8,"Пажљива демонтажа постојећих површина плексигласа - polimetilmetakrilat (PMMA) на надстрешници потходника са лајснама. Шут изнети, утоварити у камион и одвести на градску депонију удаљености до 15 км. . Обрачун пo м².","м2",{"v":170,"d":"170.00"}]
["9","Пажљива демонтажа  свих оштећених  мермерних плоча. Плоче демонтирати и подлогу скинути до бетонске конструкције. Плоче очистити од малтера и сложити. Шут изнети, утоварити у камион и одвести на градску депонију удаљености до 15 км. Обрачун по м2 пода.","м2",{"v":400,"d":"400.00"}]
["10","Демонтажа   постојећих металних противпожарних врата димензија 220х200 цм,  за излаз из станице са одвозом шута на депонију удаљености до 15 км. Обрачун по комаду врата.","ком",{"v":1,"d":"1.00"}]
["II   ДЕМОНТАЖЕ И РУШЕЊА   УКУПНО :","ДЕМОНТАЖЕ  И РУШЕЊА",null,null,"УКУПНО :"]
["III","ПРОТИВПОЖАРНА  ВРАТА","јед.мере","количина","јед. цена","укупно"]
["\nНапомена:  Двокрилна пуна метална ПП врата, ватроотпорности ЕИ2 120. Врата су израђена од поцинкованог лима Д=0,8мм са ватроотпорном испуном и ватроотпорном касетом за браву. Рам врата израђен од челичног лима д=1,5мм са лежиштем на дихт гуму и експандирајућу траку. Врата су снабдевена са три шарке, (две са опругом за самозатварање), ПП  бравом и кваком. Врата су без прага. Варата морају бити атестирана у акредитованој институцији (ИМС или други).                                                                                                 \n           "]
[1,"Набавка и постављање двокрилних сигурносних противпожарних врата,  димензија 220x200 цм. Обрачун по комаду врата.","ком",{"v":1,"d":"1.00"}]
["III   АЛУМИНИЈУМСКА СТОЛАРИЈА   УКУПНО :","ПРОТИВПОЖАРНА  ВРАТА",null,null,"УКУПНО :"]
["IV","КАМЕНОРЕЗАЧКИ  РАДОВИ","јед.мере","количина","јед. цена","укупно"]
["1","Набавка мермера-бордо камен (прошарани), машинска обрада и облагање чела и газишта степеника и свих површина. Газишта радити од плоча дебљине 3 цм, а чела дебљине 2 цм. Врста и боја мермера по избору Инвеститора. Обрада плоча по пројекту и детаљима. Плоче поставити на лепак за спољну употребу CERESIT® CM 16 или одговарајући , фуговати, очистити спојнице и камен. Обрачун по м2.","м2",{"v":200,"d":"200.00"}]
["2","Набавка мермера-антацит камен (прошарани), машинска обрада и облагање чела и газишта степеника и свих површина. Газишта радити од плоча дебљине 3 цм, а чела дебљине 2 цм. Врста и боја мермера по избору Инвеститора. Обрада плоча по пројекту и детаљима. Плоче поставити на лепак за спољну употребу CERESIT® CM 16 или одговарајући , фуговати, очистити спојнице и камен. Обрачун по м2.","м2",{"v":200,"d":"200.00"}]
[" IV КАМЕНОРЕЗАЧКИ  РАДОВИ УКУПНО:"]
["V","МОЛЕРСКО - ФАРБАРСКИ РАДОВИ","јед.мере","количина","јед. цена","укупно"]
[1,"Набавка материјала, и бојење рекламних паноа до колосека, пре бојења површине очистити, обрусити , отпрашити, пребојити основном бојом а након сушења завршном бојом за метал. Обрачун по м2.","м2",{"$f":"900*2","v":{"v":1800,"d":"1800.00"}}]
[2,"Набавка материјала и бојење плафонске рупичасте металне облоге до перона бојом за метал са свим потребним предрадњама, пре бојења површине обрусити , отпрашити, пребојити основном бојом а након сушења завршном бојом за метал. Обрачун по м2.","м2",{"v":1195,"d":"1195.00"}]
["3","Стругање  боје са старих зидова и плафона. Површине пажљиво остругати до малтера и опрати, а  затим обрусити и очистити и извршити импрегнацију. Обрачун по м2 обрађене површине са помоћном скелом. ","м2",{"v":420,"d":"420.00"}]
["4","Набавка материјала и глетовање плафона глет масом у два слоја, до потпуно равне површине. Изглетоване површине ишмирглати и припремити за бојење. Позиција обухвата сав материјал за рад и руке. Обрачун по m².","м2",{"$f":"1500+120+185","v":{"v":1805,"d":"1805.00"}}]
["5","Набавка материјала и бојење плафона у боју по избору инвеститора. Претходно изглетовану и ишмирглану подлогу премазати прајмером, па бојити у два слоја до постизања равномерног тона. Позиција обухвата сав материјал за рад, прајмер, бојење и руке. Обрачун по м2 .","м2",{"$f":"1500+120+185","v":{"v":1805,"d":"1805.00"}}]
["6","Набавка материјала и бојење зидова у боју по избору Инвеститора. Претходно изглетовану и ишмирглану подлогу премазати прајмером, па бојити у два слоја до постизања равномерног тона. Позиција обухвата сав материјал за рад, прајмер, бојење и руке. Обрачун по м2 .","м2",{"v":150,"d":"150.00"}]
["7","Лечење флека на зидовима и плафонима, бојама на бази акрилата. Површине са флекама остругати, опрати и глетовати. Бојити бојама на бази акрилата више пута. Обрачун по м2 лечене површине","м2",{"v":5,"d":"5.00"}]
["8","Набавка материјала и бојење цеви челичне конструкције надстрешнице, бојом за метал (у боји по избору Наручиоца), са потребном припремом. На претходно припремљену површину, пре бојења,  скинути корозију са метала хемијским и физичким средствима, на деловима где је она присутна, а затим све површине брусити и очистити. На цеви нанети импрегнацију и основну боју, а затим бојити два пута бојом за метал. Обрачун по м2 обојених цеви разних пречника.     ","м2",{"v":160,"d":"160.00"}]
["9","Набавка материјала, фарбање металних елемената бојом за метал. Пре бојења са метала скинути корозију хемијским и физичким средствима, а затим све површине брусити и очистити, нанети импрегнацију и  основну боју, а затим предкитовати и брусити. После наношења првог слоја боје за метал, китовати и брусити. Обојити други пут бојом за метал, у тону по избору наручиоца. Обрачун по м2.","м2",{"v":103,"d":"103.00"}]
["10","HORIZONTALNA SIGNALIZACIJA-Obeležavanje паркинга vrši se belom (žutom) bojom retroreflektujućih osobina.- obeležavanje parkinga (d=0.10 m). Обрачун по m' обележене линије.","м1",{"v":100,"d":"100.00"}]
["V   МОЛЕРСКО - ФАРБАРСКИ РАДОВИ УКУПНО :","МОЛЕРСКО - ФАРБАРСКИ РАДОВИ",null,null,"УКУПНО :"]
["VI","ФАСАДЕРСКИ РАДОВИ","јед.мере","количина","јед. цена","укупно"]
[1,"Прање вештачког пикованог камена свих зидних површина, под контролисаним притиском  неагресивним поступком применом вруће водене паре применом микрофиног минералног пудера како би се скинуле флеке, слојеви патине, прашине и слично, а не оштете површине вештачког камена. Обрачун по м2.","м2",{"v":3350,"d":"3350.00"}]
[2,"Набавка материјала и бојење зидова од пикованог вештачког камена дисперзивном акрилном фасадном бојом  у тону по избору Инвеститора. Предходно очишћену и отпрашену подлогу премази прајмером, па бојити у два слоја до постизања равномерног тона. Позиција обухвата сав материјал за рад, прајмер, бојење и рад. Обрачун по  м2.","м2",{"v":100,"d":"100.00"}]
[3,"Запуњавање шлицева насталих приликом демонтаже и поновне монтаже врата.","м1",{"v":22,"d":"22.00"}]
[4,"Обрада шпалетни око нових двокрилних сигурносних противпожарних врата у свему према постојећим (постојећа шпалетна је пиковани вештачки камен у  резедо боји),  димензија врата 220x200 цм. Обрачун по м1.","м1",{"v":12,"d":"12.00"}]
["VI","ФАСАДЕРСКИ РАДОВИ",null,null,"УКУПНO:"]
["VII","ЗАСТАКЉИВАЊЕ НАДСТРЕШНИЦЕ","јед.мере","количина","јед. цена","укупно"]
[1,"Набавка материјала, плексигласа - polimetilmetakrilat (PMMA) и застакљивање,  у свему према постојећем. Застакљивање извршити по пројекту, детаљима и упутству пројектанта. У цену улази оков и чишћење фалца од кита,  у свему према постојећем. Плексиглас причврстити и заптити одговарајућим китом. Обрачун по м2 застакљене површине.","м2",{"v":170,"d":"170.00"}]
["VII  ЗАСТАКЉИВАЊЕ НАДСТРЕШНИЦЕ УКУПНО:","ЗАСТАКЉИВАЊЕ НАДСТРЕШНИЦЕ",null,null,"УКУПНО:"]
["VIII","БРАВАРСКИ РАДОВИ","јед.мере","количина","јед. цена","укупно"]
[1,"Набавка материјала, израда и  монтажа пуног панела на постојећа двокрилна  метална решеткаста врата димензија 240x230 cm  код перонског стајалишта. Крила врата обложити челичним лимом.  Мере узети на лицу места . Обрачун по комаду.","ком",1]
[2,"Набавка и монтажа сливне решетке на излазу из подходника од метала, у свему према постојећој. Обрачун по комаду.","ком",{"v":8,"d":"8.00"}]
["VIII   БРАВАРСКИ РАДОВИ УКУПНО:","БРАВАРСКИ РАДОВИ",null,null,"УКУПНО:"]
["IX","СУВОМОНТАЖНИ РАДОВИ","јед.мере","количина","јед. цена","укупно"]
[1,"Израда спуштеног плафона са челичном потконструкцијом и облагање гипс картонским плочама ГКБ 12,5 мм, систем Кнауф Д112. Двоструку потконструкцију израдити од носивих и монтажних поцинкованих профила ЦД 60x27 мм причвршћених висилицама за носиви плафон и обложити гипс картонским плочама, по пројекту и упутству произвођача. Саставе обрадити глет масом и бандаж тракама по упутству пројектанта. У цену улази и радна скела. Обрачун по м2 постављене површине.","м2",{"v":195,"d":"195.00"}]
["IX   СУВОМОНТАЖНИ РАДОВИ УКУПНО:","СУВОМОНТАЖНИ РАДОВИ",null,null," УКУПНО:"]
["X","РАЗНИ РАДОВИ","јед.мере","количина","јед. цена","укупно"]
[1,"Поред колосека, на станици Вуков споменик, налази се Булбудерски бунар за који је потребно: чишћење, прање, пескирење металних и бетонских површина на улазу као и фарбање металних елемената.","м2",{"v":10,"d":"10.00"}]
[2,"Набавка материјала и чишћење и прање рукохвата од алуминијума, неагресивним хемијским средствима за ту намену. Обрачун по м1 . ","м1",{"$f":"40+64+220+144","v":{"v":468,"d":"468.00"}}]
[3,"Набавка материјала и чишћење и прање металних површина од алуминијума посебним хемијским средствима  за ту намену.Сва евентуална оштећења падају на терет извођача.  Обрачун по м2 . ","м2",{"v":200,"d":"200.00"}]
[4,"Набавка материјала, чишћење, прање и полирање свих површина од мермера, гранита и тераца, подова и зидова  и жуте траке дистанцера неагресивним хемијским средствима за ту намену. Обрачун по м2 . ","м2",{"v":5400,"d":"5400.00"}]
[5,"Набавка материјала и прање свих површина од бетона, под контролисаним притиском  неагресивним поступком применом вруће водене паре применом микрофиног минералног пудера како би се скинуле флеке, слојеви патине, прашине и слично, а не оштете површине вештачког камена, позија: на излазу из потходника. Обрачун по м2.","м2",{"v":52,"d":"52.00"}]
[6,"Замена постојећих жардињера. Постојеће жардињере одложити на место које одреди Инвеститор. Набавка и постављање нових  жардињера са вештачким зеленилом у договору са Инвеститором. Обрачун по комаду"]
["а","димензија  79х79 цм","ком",{"v":28,"d":"28.00"}]
["б","димензија  98х142 цм","ком",{"v":7,"d":"7.00"}]
["в","димензија  119х128 цм","ком",{"v":8,"d":"8.00"}]
[7,"Набавка материјала и израда и монтажа клупа у доњем делу вестибила у свему према узору на постојеће, израђене од метала и дрвета. Ценом је обухваћен матријал и рад . Обрачун по комаду.","ком",{"v":2,"d":"2.00"}]
[null,"Набавка и постављање кантe за отпад. Модел канте за отпад KZO 14 или слично израђен је од чврсте металне конструкције-лима дебљине 4мм. Одлагање отпада се врши кроз отворе који се налазе са две стране канте у уложак од поцинкованог лима.","ком.",{"$f":"10+10+10","v":{"v":30,"d":"30.00"}}]
[null,"Канте KZO 14 имају једна врата која се отварају са универзалним кључем ради пражњења улошка и израђују се од вертикалних дрвених летвица фиксираних за конструкцију или од перфорираног лима на коме су у модернистичком стилу изрезане округле рупице. "]
[]
[]
[9,"Набавка и уградња пиктограма око објекта као и на местима где их је потребно заменити, у свему према узору на постојеће. Конструкција од челичних кутија 4цм састављене варом на задату димензију, застићене пластификацијом\nТабла израђена од Алубонда дебљине 3мм, пресвучена ПВЦ фолијом у боји са пиктограмима\nГеровање, савијање табле и качење на конструкцију саморесцима","ком",{"v":100,"d":"100.00"}]
[10,"Набавка материјала и израда седалних места на перонском стајалишту. Седална места требају бити израђена од пвц-а и металних елемената конструкције. Металне елементе пажљиво анкеровати у под на више места у свему по договору са стручним надзором и узору на постојеће. Обрачун по комаду.","ком",{"$f":"84","v":{"v":84,"d":"84.00"}}]
[11,"Набавка и постављање ознака за затвор приласка покретним степеницама - ескалаторима у договору са наручиоцем. Обрачун по комаду.","ком",8]
[12,"Уклањање графита сa свих површина. Ручно или хемијско уклањање, механичко чишћење и наношење антиграфит заштите. Обрачун по м2.","м2",{"v":200,"d":"200.00"}]
[13,"Чишћење покретних степенице - ескалатора  средством које додатно штити машине и ескалаторе као и све металне површине од корозије и које уклања уље, масти и  слично. Обрачун по м2.   ","м2",{"v":1300,"d":"1300.00"}]
[14,"Чишћење  плафона од  металних панела изнад покретних степенице - ескалатора  неагресивним средством за метал. Обрачун по м2.   ","m²",{"v":1550,"d":"1550.00"}]
[15,"Чишћење сливника и сливних решетки машинама под високим притиском у подходнику, намењене за одвођење атмосферских вода.","м2",{"v":300,"d":"300.00"}]
[16,"Чишћење просторија у објекту и око објекта, од  грађевинског шута са преносом шута на депонију коју ивеститор одреди на раздаљини до 15 km. Детаљно чишћење након изведених радова. Обрачун по m³.","m³",{"v":15,"d":"15.00"}]
["X","РАЗНИ РАДОВИ",null,null,"УКУПНО:"]
[]
["Р Е К А П И Т У Л А Ц И Ј А           Б )  ГРАЂЕВИНСКО - ЗАНАТСКИХ РАДОВА "]
["I","ПРИПРЕМНИ РАДОВИ"]
["II","ДЕМОНТАЖЕ И РУШЕЊА"]
["III","АЛУМИНИЈУМСКА СТОЛАРИЈА"]
["IV","КАМЕНОРЕЗАЧКИ  РАДОВИ"]
["V","МОЛЕРСКО - ФАРБАРСКИ РАДОВИ"]
["VI","ФАСАДЕРСКИ РАДОВИ"]
["VII","ЗАСТАКЉИВАЊЕ НАДСТРЕШНИЦЕ"]
["VIII","БРАВАРСКИ РАДОВИ"]
["IX","СУВОМОНТАЖНИ РАДОВИ "]
["X","РАЗНИ РАДОВИ"]
["Б","ГРАЂЕВИНСКО - ЗАНАТСКИ РАДОВИ:",null,null,"УКУПНО:"]

{"sheet":"Санитарни чвор Вуков споменик","index":1,"n_rows":59,"n_cols":6,"rows_kept":59,"merged":[[0,0,0,5],[1,0,1,4],[2,0,2,5],[5,1,5,5],[13,1,13,3],[16,1,16,3],[18,0,18,5],[22,0,22,3],[23,0,23,5],[24,0,24,1],[27,0,27,3],[28,0,28,1],[31,0,31,3],[32,0,32,1],[37,0,40,0],[41,1,41,3],[42,0,42,1],[44,1,44,3],[46,0,46,5],[52,0,52,3],[55,0,55,5]]}
["В)   Станица Вуков споменик - санитарни чвор /ниво -2/"]
[]
["А) ГРАЂЕВИНСКО-ЗАНАТСКИ РАДОВИ "]
[]
["Ред. број","ВРСТА РАДОВА","Јед. мере","Количина","Јединична цена","СВЕГА динара"]
["1","Напомена: Потребно је обезбедити пројекат реконструкције канализационе мреже, с обзиром да је неопходно раздвојити кишну и фекалну канализацију. Обезбедити све потребне дозволе и сагласности."]
["1.  РУШЕЊА И ДЕМОНТАЖЕ",null,"јед.мере","количина","јед. цена","укупно"]
[1,"Демонтажа санитарија и арматура и одвоз на депонију. Плаћа се за комплет."]
["а","* конзолна   WC  шоља ","ком",{"v":10,"d":"10.00"},{"v":2000,"d":"2,000.00"},{"$f":"+E9*D9","v":{"v":20000,"d":"20,000.00"}}]
["а","* писоара ","ком",{"v":4,"d":"4.00"},{"v":2000,"d":"2,000.00"},{"$f":"+E10*D10","v":{"v":8000,"d":"8,000.00"}}]
["в","Демонтажа плоче са  умиваонионицима у таоалетима. Плоче од композитног минералног материјала типа  corian Solid surface white colour Designer White d=10mm. Плоче је постаљена  преко скривене конструкције која се не демонтира. Након тога демонтирати све умиваонике. Шут прикупити, изнети,утоварити на камион и одвести на градску депонију удаљености до 15 км. Обрачун  комплет демонтиране позиције.","кпл.",{"v":2,"d":"2.00"},{"v":12000,"d":"12,000.00"},{"$f":"+E11*D11","v":{"v":24000,"d":"24,000.00"}}]
[2,"Пажљиво шлицовање зида за пролаз канализационих  цеви. Кроз зид пажљиво извести шлицеве за поствљање цеви . Шут прикупити, изнети, утоварити на камион и одвести на градску депонију.  Обрачун по м1 шлица.","м1",{"v":8,"d":"8.00"},{"v":800,"d":"800.00"},{"$f":"ROUND(D12*E12,2)","v":{"v":6400,"d":"6,400.00"}}]
[3,"Демонтажа  купатилских сливника и одвоз на градску депонију до 15 км удаљености. Обрачун по комаду.","ком",{"v":4,"d":"4.00"},{"v":2000,"d":"2,000.00"},{"$f":"+E13*D13","v":{"v":8000,"d":"8,000.00"}}]
[1,"РУШЕЊА И ДЕМОНТАЖЕ",null,null,"УКУПНО:",{"$f":"SUM(F8:F13)","v":{"v":66400,"d":"66,400.00"}}]
["2. РАЗНИ РАДОВИ"]
["1","Чишћење и прање комплетних санитарних чворова. Извршити детаљно чишћење целог санитарног чвора: прање свих површина од керамике,плоче од композитног минералног материјала типа  corian Solid surface white colour Designer White, славине, конзолних wc шоља, писоара и свих остали плочастих и панелних елемената, са средствима прилагођеним за ту намену.Обрачун по м2 основе.  ","м2",{"v":70,"d":"70.00"},{"v":1000,"d":"1,000.00"},{"$f":"ROUND(D16*E16,2)","v":{"v":70000,"d":"70,000.00"}}]
[2,"РАЗНИ РАДОВИ",null,null,"УКУПНО:",{"$f":"SUM(F15:F16)","v":{"v":70000,"d":"70,000.00"}}]
[]
["Р Е К А П И Т У Л А Ц И Ј А            А)  ГРАЂЕВИНСКО-ЗАНАТСКИХ РАДОВА"]
[{"$nulls":5},"ДИНАРА"]
[1,"РУШЕЊА И ДЕМОНТАЖЕ",{"$nulls":3},{"$f":"SUM(F5:F13)","v":{"v":66400,"d":"66,400.00"}}]
[2,"РАЗНИ РАДОВИ",{"$nulls":3},{"$f":"F17","v":{"v":70000,"d":"70,000.00"}}]
["A) ГРАЂЕВИНСКО-ЗАНАТСКИ РАДОВИ",{"$nulls":3},"УКУПНО:",{"$f":"SUM(F21:F22)","v":{"v":136400,"d":"136,400.00"}}]
["Б) ВОДОВОД И КАНАЛИЗАЦИЈА"]
["1.  ИНСТАЛАЦИЈА ВОДОВОДА",null,"јед.мере","количина","јед. цена","укупно"]
["1.1","Набавка и уградња пропусних вентила  произвођача \"WAVIN\" или сл.  са капом и хромираном розетом. Обрачун по комаду.","ком",16,{"v":2500,"d":"2,500.00"},{"$f":"ROUND(D26*E26,2)","v":{"v":40000,"d":"40,000.00"}}]
["1.2","Набавка и уградња ПВЦ сифона за лавабо.  Обрачун по ком.","ком",8,{"v":2500,"d":"2,500.00"},{"$f":"ROUND(D27*E27,2)","v":{"v":20000,"d":"20,000.00"}}]
["ИНСТАЛАЦИЈА ВОДОВОДА",{"$nulls":3},"УКУПНО:",{"$f":"SUM(F26:F27)","v":{"v":60000,"d":"60,000.00"}}]
["2. ИНСТАЛАЦИЈА КАНАЛИЗАЦИЈЕ",null,"јед.мере","количина","јед. цена","укупно"]
[2.1,"Снимање и испитивање постојеће канализацијионе мреже на комплетној станици Вуков споменик.","ком",1,{"v":200000,"d":"200,000.00"},{"$f":"ROUND(D30*E30,2)","v":{"v":200000,"d":"200,000.00"}}]
[2.2,"Одгушење канализационе мреже под притиском ауцистерном VOMA. Обрачун паушално.","паушал",1,{"v":30000,"d":"30,000.00"},{"$f":"ROUND(D31*E31,2)","v":{"v":30000,"d":"30,000.00"}}]
["2. ИНСТАЛАЦИЈА КАНАЛИЗАЦИЈЕ:",{"$nulls":3},"УКУПНО:",{"$f":"SUM(F30:F31)","v":{"v":230000,"d":"230,000.00"}}]
["3.  САНИТАРИЈЕ:",null,"јед.мере","количина","јед. цена","укупно"]
["3.1","Набавка и постављање WC шоље и водокотлића типа TURKUAZ - Noura C monoblok, или одговарајућа истог или бољег квалитета. WC шољу причврстити одговарајућим типловима и месинганим шрафовима, преко подметача од гуме.  Водокотлић поставити и повезати са вентилом. WC шољу и водокотлић доставит на увид Пројектанту. Обрачун по комаду.","ком",10,{"v":25000,"d":"25,000.00"},{"$f":"ROUND(D34*E34,2)","v":{"v":250000,"d":"250,000.00"}}]
[3.2,"Набавка и монтажа плоче са формирањем умиваоника у таоалетима. Плоче од композитног минералног материјала типа цориан Солид сурфаце wхите цолоур Десигнер Wхите д=10мм. Плоче поставити преко постојеће скривене конструкције. Плоча је димензије по узору на постојећу  са 4  умиваоника  димензије према постојећим, у свему према графичкој документацији Извођача.  Мере проверити на лицу места.Обрачун по ком комплет монтиране позиције, са постојећом подконструкцијом и са свим потребним припремним радовима, радом и материјалом до потпуне готовости у складу са детаљом и описом.","ком",2,{"v":30000,"d":"30,000.00"},{"v":60000,"d":"60,000.00"}]
[3.3,"Набавка, пренос и монтажа комплетних умиваоника у плоче од композитног минералног материјала, са 4 точећа места, 4 једноручне батерије (Армал или сл.) за топлу и хладну воду, са групним мрежним напајањем, са претходно подесивим механичким мешањем ТВ+ХВ, перлатором са ограничењем протока воде, два \"бриноx\" црева Р⅜\" за прикључак воде са ситом против нечистоћа и неповратним вентилима. Све као Грохе; 2 угаона вентила ДН15 спојена на довод воде. Обрачун по комплету.","кпл.",2,{"v":195000,"d":"195,000.00"},{"$f":"D36*E36","v":{"v":390000,"d":"390,000.00"}}]
[3.4,"Набавка, транспорт и монтажа зидно постављеног писоара у свему према постојећем, са скривеним качењем и скривеним инсталацијама, дим 31/39 цм у белој боји  (као тип BIG BOY MUSE URINAL 31/39 cm CATALANO или одговарајуће) са уграђеним сетом (инфрацрвено активирање испирача,батеријско напајање) комплет са сифоном, зидним носачем писоара за уградњу у гипсане преградне зидове (као тип произвођача GEBERET или одговарајуће) и керамичком зидном преградом. Обрачун по комаду.   ","ком",4,{"v":17000,"d":"17,000.00"},{"$f":"ROUND(D37*E37,2)","v":{"v":68000,"d":"68,000.00"}}]
["3.5","Набавка и уградња санитарне галантерије. Купатилскиу галантерију набавити и поставити према позицијама датим у пројекту и у договору са инвеститором. Обрачун по комаду."]
[null,"Набавка и уградња држача за тоалет папир, типа ROSAN S2 2909, или одговарајући истог или сличног квалитета. Обрачун по ком.","ком",1,{"v":2500,"d":"2,500.00"},{"$f":"ROUND(D39*E39,2)","v":{"v":2500,"d":"2,500.00"}}]
[null,"Набавка и уградња диспензера за течни сапун  MERIDA STELLA MAXI мат 800 ml, или одговарајући истог или сличног квалитета. Обрачун по ком.","ком",8,{"v":12000,"d":"12,000.00"},{"v":96000,"d":"96,000.00"}]
[null,"Набавка и уградња сушача за руке, типа Dyson airblade 9kJ, или одговарајући истог или сличног квалитета. Обрачун по ком.","ком",2,{"v":210000,"d":"210,000.00"},{"v":420000,"d":"420,000.00"}]
[3,"САНИТАРИЈЕ",null,null,"УКУПНО:",{"$f":"SUM(F34:F41)","v":{"v":1286500,"d":"1,286,500.00"}}]
["4. ОСТАЛИ РАДОВИ",null,"јед.мере","количина","јед. цена","укупно"]
["4.1","Набавка и монтажа купатилских подних сливника са прохромском решетком, са везивањем на канализацију, са свим материјалом за спајање. Обрачун по комаду сливника.","ком.",4,{"v":7000,"d":"7,000.00"},{"$f":"ROUND(D44*E44,2)","v":{"v":28000,"d":"28,000.00"}}]
["4.","ОСТАЛИ РАДОВИ",null,null,"УКУПНО:",{"$f":"SUM(F44:F44)","v":{"v":28000,"d":"28,000.00"}}]
[]
["Р Е К А П И Т У Л А Ц И Ј А             Б) ВОДОВОД И КАНАЛИЗАЦИЈА"]
[{"$nulls":5},"динара"]
[1,"ИНСТАЛАЦИЈА ВОДОВОДА","...........................................................",null,null,{"$f":"F28","v":{"v":60000,"d":"60,000.00"}}]
[2,"ИНСТАЛАЦИЈА КАНАЛИЗАЦИЈЕ","...........................................................",null,null,{"$f":"F32","v":{"v":230000,"d":"230,000.00"}}]
[3,"САНИТАРИЈЕ","...........................................................",null,null,{"$f":"F42","v":{"v":1286500,"d":"1,286,500.00"}}]
[4,"ОСТАЛИ РАДОВИ","...........................................................",null,null,{"$f":"F45","v":{"v":28000,"d":"28,000.00"}}]
["Б) ВОДОВОД И КАНАЛИЗАЦИЈА",{"$nulls":3},"УКУПНО:",{"$f":"SUM(F49:F52)","v":{"v":1604500,"d":"1,604,500.00"}}]
[]
[]
["Р Е К А П И Т У Л А Ц И Ј А        В)   Станица Вуков споменик - санитарни чвор /ниво -2/"]
["А)","ГРАЂЕВИНСКО-ЗАНАТСКИ РАДОВИ",{"$nulls":3},{"$f":"F23","v":{"v":136400,"d":"136,400.00"}}]
["Б)","ВОДОВОД И КАНАЛИЗАЦИЈА",{"$nulls":3},{"$f":"F53","v":{"v":1604500,"d":"1,604,500.00"}}]
[{"$nulls":4},"УКУПНО:",{"$f":"SUM(F57:F58)","v":{"v":1740900,"d":"1,740,900.00"}}]

{"sheet":"Елект. и-Расвета Вуков Споменик","index":2,"n_rows":27,"n_cols":6,"rows_kept":27,"merged":[[0,0,0,5],[1,0,1,5],[6,1,6,3],[17,1,17,4],[19,0,19,5],[21,1,21,4],[23,0,23,5],[24,0,24,4],[25,0,25,4],[26,1,26,3]]}
["Г)    ЕЛЕКТРОИНСТАЛАТЕРСКИ  РАДОВИ НА ЖЕЛЕЗНИЧКОЈ СТАНИЦИ ВУКОВ СПОМЕНИК"]
[]
["A","РАЗНИ  РАДОВИ","јед.мере","количина","јед. цена","укупно"]
[1,"Демонтирање постојећих сатова на станици и одлагање на место које одреди Инвеститор. Обрачун по комаду.","ком",{"v":20,"d":"20.00"},{"v":1250,"d":"1,250.00"},{"$f":"+E4*D4","v":{"v":25000,"d":"25,000.00"}}]
[2,"Замена сатова на станици (демонтажа постојећих и набавка и монтажа нових). Обрачун по комаду.","ком",{"v":20,"d":"20.00"},{"v":1250,"d":"1,250.00"},{"v":25000,"d":"25,000.00"}]
[3,"Набавка и постављање алуминијумских клик клак светлећих рекламних паноа димензија 100x70x10 cm по узору на постојеће. Обрачун по комаду.","ком",{"$f":"36","v":{"v":36,"d":"36.00"}},{"v":3000,"d":"3,000.00"},{"$f":"D6*E6","v":{"v":108000,"d":"108,000.00"}}]
["А","РАЗНИ  РАДОВИ ",null,null,"УКУПНО:",{"$f":"SUM(F4:F6)","v":{"v":158000,"d":"158,000.00"}}]
[]
["Ред. број","ВРСТА РАДОВА","Јед. мере","Количина","Јединична цена (динара)","Цена (динара)"]
[]
["Б","СПОЉАШЊИ ЕЛЕКТРОИНСТАЛАТЕРСКИ РАДОВИ","јед.мере","количина","јед. цена","укупно"]
["1","Израда пројекта електроинсталације за радове који су обухваћени предмером електроинсталатерских радова, (у оквиру станичног подручја). Пројекат одрадити по стандардима и прописима за електроинсталатерске радове, тако да за њега може да се добије грађевинска дозвола. ","ком",{"v":1,"d":"1.00"},{"v":200000,"d":"200,000.00"},{"$f":"+E12*D12","v":{"v":200000,"d":"200,000.00"}}]
["2","Набавка и уградња СОЛЕД лед рефлектора од 50W 6400K,   IP67 (заштита од прашине, воде) на лучном зиду изнад полазне тачке ескалатора код перонског дела, као и код свих улазака у подходник из парка, а све у договору са Инвеститором. Обрачун по комаду.","кoм",{"v":48,"d":"48.00"},{"v":2850,"d":"2,850.00"},{"v":136800,"d":"136,800.00"}]
["3","Набавка и уградња каблова N2 XH - J 3x2.5 mm².","m1",{"v":1000,"d":"1000.00"},{"v":300,"d":"300.00"},{"v":300000,"d":"300,000.00"}]
["4","Набавка и уградња панцир црева Ø13 за каблове. У обрачун спада сав потребан материјал за рад и руке.","m1",{"v":1000,"d":"1000.00"},{"v":150,"d":"150.00"},{"v":150000,"d":"150,000.00"}]
[5,"Набавка и уградња лед стрела од 16W, 6400К у дужини од 120цм. Обрачун по комаду.","кoм",{"v":190,"d":"190.00"},{"v":3000,"d":"3,000.00"},{"v":570000,"d":"570,000.00"}]
[6,"Набавка и уградња дан-ноћ лед светлећих  реклама са  натписом \"Вуков споменик - Vukov Spomenik\" и пратећом електро инсталацијом, на сва 4 уласка у подходник из парка . На три улаза је потребно направити челичну конструкцију од цеви 10x10 cm. Обрачун по комаду.","m2",{"v":8,"d":"8.00"},{"v":76000,"d":"76,000.00"},{"v":608000,"d":"608,000.00"}]
["I","УКУПНО СПОЉАШЊИ ЕЛЕКТРОИНСТАЛАТЕРСКИ РАДОВИ:",{"$nulls":3},{"$f":"+F17+F16+F15+F14+F13+F12","v":{"v":1964800,"d":"1,964,800.00"}}]
[]
["РЕКАПИТУЛАЦИЈА СПОЉАШЊИХ ЕЛЕКТРОИНСТАЛАТЕРСКИХ РАДОВА :"]
["I","СПОЉАШЊИ ЕЛЕКТРОИНСТАЛАТЕРСКИ РАДОВИ",{"$nulls":3},{"$f":"F18","v":{"v":1964800,"d":"1,964,800.00"}}]
[null,"УКУПНО:",{"$nulls":3},{"$f":"+F21","v":{"v":1964800,"d":"1,964,800.00"}}]
[]
["РЕКАПИТУЛАЦИЈА       Г)    ЕЛЕКТРОИНСТАЛАТЕРСКИ  РАДОВИ "]
[" А) РАЗНИ РАДОВИ",{"$nulls":4},{"$f":"F7","v":{"v":158000,"d":"158,000.00"}}]
[" Б) СПОЉАШЊИ ЕЛЕКТРОИНСТАЛАТЕРСКИ РАДОВИ:",{"$nulls":4},{"$f":"F22","v":{"v":1964800,"d":"1,964,800.00"}}]
["Г","ЕЛЕКТРИНСТАЛАТЕРСКИ РАДОВИ ",null,null,"УКУПНО:",{"$f":"SUM(F25:F26)","v":{"v":2122800,"d":"2,122,800.00"}}]

{"sheet":"Збирна рекапитилација","index":3,"n_rows":8,"n_cols":6,"rows_kept":8,"merged":[[1,0,1,5],[4,1,4,4],[5,1,5,4]]}
[]
["ОПШТА  РЕКАПИТУЛАЦИЈА"]
[{"$nulls":5},"ДИНАРА"]
["А"," ЕСКАЛАТОРИ - ПОКРЕТНЕ СТЕПЕНИЦЕ ",{"$nulls":3},{"$f":"'Вуков Споменик-ново'!F10","v":{"v":0,"d":"0.00"}}]
["Б","ГРАЂЕВИНСКО-ЗАНАТСКИ РАДОВИ",{"$nulls":3},{"$f":"'Вуков Споменик-ново'!F107","v":{"v":0,"d":"0.00"}}]
["В","ВОДОВОД И КАНАЛИЗАЦИЈА",{"$nulls":3},{"$f":"'Санитарни чвор Вуков споменик'!F59","v":{"v":1740900,"d":"1,740,900.00"}}]
["Г","ЕЛЕКТРИНСТАЛАТЕРСКИ РАДОВИ ",{"$nulls":3},{"$f":"'Елект. и-Расвета Вуков Споменик'!F27","v":{"v":2122800,"d":"2,122,800.00"}}]
[{"$nulls":4},"УКУПНО:",{"$f":"SUM(F4:F7)","v":{"v":3863700,"d":"3,863,700.00"}}]

{"sheet":"Sheet1","index":4,"n_rows":0,"n_cols":0,"rows_kept":0}